fUSD/lending_fUSD_20251024
["ID","MTS","AMOUNT","RATE_DAILY","PERIOD"]
[392327709,1761342643012,-151.0,0.00038346,30]
[392327710,1761342643021,-151.0,0.00038346,30]
[392327711,1761342643031,-151.0,0.00038346,30]
[392327712,1761342643041,-151.0,0.00038346,30]
[392327713,1761342643050,-151.0,0.00038346,30]
[392327714,1761342643058,-151.0,0.00038346,30]
[392327715,1761342643067,-151.0,0.00038346,30]
[392327716,1761342643076,-151.0,0.00038346,30]
[392327717,1761342643085,-274.074325,0.00038346,30]
[392327718,1761342643094,-151.0,0.00038346,30]
[392327719,1761342643103,-151.0,0.00038346,30]
[392327720,1761342643111,-271.347679,0.00038346,30]
[392327721,1761342643120,-271.347679,0.00038346,30]
[392327722,1761342643129,-271.347679,0.00038346,30]
[392327723,1761342643137,-271.347679,0.00038346,30]
[392327724,1761342643146,-271.347679,0.00038346,30]
[392327725,1761342643155,-271.347679,0.00038346,30]
[392327726,1761342643163,-271.347679,0.00038346,30]
[392327727,1761342643172,-271.347679,0.00038346,30]
[392327728,1761342643181,-151.0,0.00038346,30]
[392327729,1761342643189,-151.0,0.00038346,30]
[392327730,1761342643198,-151.0,0.00038346,30]
[392327731,1761342643207,-151.0,0.00038346,30]
[392327732,1761342643215,-151.0,0.00038346,30]
[392327733,1761342643224,-157.961088,0.00038346,30]
[392327734,1761342643234,-157.961088,0.00038346,30]
[392327735,1761342643242,-151.0,0.00038346,30]
[392327736,1761342643252,-151.0,0.00038346,30]
[392327737,1761342643262,-157.961088,0.00038346,30]
[392327738,1761342643271,-157.961088,0.00038346,30]
[392327739,1761342643280,-151.0,0.00038346,30]
[392327740,1761342643290,-151.0,0.00038346,30]
[392327741,1761342643299,-157.961088,0.00038346,30]
[392327742,1761342643313,-157.961088,0.00038346,30]
[392327743,1761342643322,-151.0,0.00038346,30]
[392327744,1761342643331,-151.0,0.00038346,30]
[392327745,1761342643340,-151.0,0.00038346,30]
[392327746,1761342643349,-151.0,0.00038346,30]
[392327747,1761342643358,-157.961088,0.00038346,30]
[392327748,1761342643367,-157.961088,0.00038346,30]
[392327749,1761342643380,-301.915883,0.00038346,30]
[392327750,1761342643390,-156.656,0.00038355,2]
[392327751,1761342643399,-9746.30385874,0.00038355,120]
[392327752,1761342643408,-500.0,0.00038355,2]
[392327753,1761342643417,-500.0,0.00038355,2]
[392327754,1761342643426,-999.0,0.00038355,120]
[392327755,1761342643435,-500.0,0.00038355,2]
[392327756,1761342643445,-500.0,0.00038355,2]
[392327757,1761342643454,-408.61894587,0.00038356,30]
[392327758,1761342643463,-500.0,0.00038356,30]
[392327759,1761342643472,-500.0,0.00038356,2]
[392327760,1761342643481,-151.258158,0.00038356,30]
[392327761,1761342643490,-158.779104,0.00038356,30]
[392327762,1761342643499,-158.779104,0.00038356,30]
[392327763,1761342643508,-152.248476,0.00038356,30]
[392327764,1761342643517,-151.258158,0.00038356,30]
[392327765,1761342643526,-190.124099,0.00038356,30]
[392327766,1761342643536,-155.985851,0.00038356,30]
[392327767,1761342643544,-153.087158,0.00038356,30]
[392327768,1761342643554,-920.709904,0.00038356,30]
[392327769,1761342643563,-518.838653,0.00038356,30]
[392327770,1761342643571,-500.0,0.00038356,2]
[392327771,1761342643580,-500.0,0.00038356,30]
[392327772,1761342643589,-500.0,0.00038356,30]
[392327773,1761342643598,-529.54,0.00038356,30]
[392327774,1761342643607,-500.0,0.00038356,30]
[392327775,1761342643617,-500.0,0.00038356,30]
[392327776,1761342643626,-500.0,0.00038356,30]
[392327777,1761342643635,-500.0,0.00038356,30]
[392327778,1761342643644,-500.0,0.00038356,30]
[392327779,1761342643653,-500.0,0.00038356,30]
[392327780,1761342643662,-500.0,0.00038356,30]
[392327781,1761342643670,-500.0,0.00038356,30]
[392327782,1761342643679,-500.0,0.00038356,30]
[392327783,1761342643688,-500.0,0.00038356,30]
[392327784,1761342643697,-500.0,0.00038356,30]
[392327785,1761342643706,-500.0,0.00038356,30]
[392327786,1761342643714,-500.0,0.00038356,30]
[392327787,1761342643723,-500.0,0.00038356,30]
[392327788,1761342643732,-545.3,0.00038356,30]
[392327790,1761342643741,-500.0,0.00038356,30]
[392327791,1761342643749,-966.88,0.00038356,30]
[392327792,1761342643761,-500.0,0.00038356,30]
[392327793,1761342643770,-500.0,0.00038356,30]
[392327794,1761342643778,-500.0,0.00038356,30]
[392327795,1761342643787,-564.12,0.00038356,30]
[392327796,1761342643796,-774.95,0.00038356,30]
[392327797,1761342643807,-500.0,0.00038356,30]
[392327798,1761342643816,-500.0,0.00038356,30]
[392327799,1761342643825,-500.0,0.00038356,30]
[392327800,1761342643835,-500.0,0.00038356,30]
[392327801,1761342643845,-500.0,0.00038356,30]
[392327802,1761342643853,-503.96,0.00038356,30]
[392327803,1761342643862,-500.0,0.00038356,30]
[392327804,1761342643871,-767.81,0.00038356,30]
[392327805,1761342643881,-500.0,0.00038356,30]
[392327806,1761342643890,-500.0,0.00038356,30]
[392327807,1761342643899,-500.0,0.00038356,30]
[392327808,1761342643908,-500.0,0.00038356,30]
[392327809,1761342643917,-540.11,0.00038356,30]
[392327810,1761342643926,-444.98088267,0.00038356,30]
[392327811,1761342643935,-500.0,0.00038356,30]
[392327812,1761342643944,-500.0,0.00038356,30]
[392327813,1761342643952,-500.0,0.00038356,30]
[392327814,1761342643961,-500.0,0.00038356,30]
[392327815,1761342643970,-500.0,0.00038356,30]
[392327816,1761342643980,-500.0,0.00038356,30]
[392327817,1761342643989,-530.62,0.00038356,30]
[392327818,1761342644000,-500.0,0.00038356,30]
[392327819,1761342644008,-500.0,0.00038356,30]
[392327820,1761342644018,-500.0,0.00038356,30]
[392327821,1761342644027,-500.0,0.00038356,30]
[392327822,1761342644037,-371.97497548,0.00038356,30]
[392327823,1761342644046,-500.0,0.00038356,30]
[392327824,1761342644055,-500.0,0.00038356,30]
[392327825,1761342644064,-551.3947534,0.00038356,30]
[392327826,1761342644074,-347.31986767,0.00038356,30]
[392327827,1761342644084,-500.0,0.00038356,30]
[392327828,1761342644094,-176.96611413,0.00038356,30]
[392327829,1761342644108,-500.0,0.00038356,30]
[392327830,1761342644117,-500.0,0.00038356,30]
[392327831,1761342644132,-500.0,0.00038356,30]
[392327832,1761342644142,-500.0,0.00038356,30]
[392327833,1761342644151,-523.51331957,0.00038356,30]
[392327834,1761342644161,-500.0,0.00038356,30]
[392327835,1761342644170,-500.0,0.00038356,30]
[392327836,1761342644179,-500.0,0.00038356,30]
[392327837,1761342644188,-500.0,0.00038356,30]
[392327838,1761342644196,-500.0,0.00038356,30]
[392327839,1761342644205,-500.0,0.00038356,30]
[392327840,1761342644214,-500.0,0.00038356,30]
[392327841,1761342644223,-500.0,0.00038356,30]
[392327842,1761342644231,-500.0,0.00038356,30]
[392327843,1761342644240,-500.0,0.00038356,30]
[392327844,1761342644249,-536.81,0.00038356,14]
[392327845,1761342644258,-500.0,0.00038356,30]
[392327846,1761342644267,-500.0,0.00038356,30]
[392327847,1761342644276,-500.0,0.00038356,30]
[392327848,1761342644286,-537.39,0.00038356,30]
[392327849,1761342644295,-475.03559111,0.00038356,30]
[392327850,1761342644304,-500.0,0.00038356,30]
[392327851,1761342644313,-500.0,0.00038356,30]
[392327852,1761342644322,-500.0,0.00038356,30]
[392327853,1761342644331,-500.0,0.00038356,30]
[392327854,1761342644340,-500.0,0.00038356,30]
[392327855,1761342644350,-500.0,0.00038356,30]
[392327856,1761342644359,-696.67,0.00038356,30]
[392327857,1761342644368,-500.0,0.00038356,30]
[392327858,1761342644377,-1009.27,0.00038356,30]
[392327859,1761342644386,-500.0,0.00038356,30]
[392327860,1761342644395,-500.0,0.00038356,30]
[392327861,1761342644404,-500.0,0.00038356,30]
[392327862,1761342644413,-500.0,0.00038356,30]
[392327863,1761342644422,-500.0,0.00038356,30]
[392327864,1761342644431,-500.0,0.00038356,30]
[392327865,1761342644440,-500.0,0.00038356,30]
[392327866,1761342644449,-500.0,0.00038356,30]
[392327867,1761342644458,-500.0,0.00038356,30]
[392327868,1761342644467,-500.0,0.00038356,30]
[392327869,1761342644476,-500.0,0.00038356,30]
[392327870,1761342644485,-500.0,0.00038356,30]
[392327871,1761342644494,-500.0,0.00038356,30]
[392327872,1761342644504,-500.0,0.00038356,30]
[392327873,1761342644514,-500.0,0.00038356,30]
[392327874,1761342644523,-430.61863305,0.00038356,7]
[392327875,1761342644534,-500.0,0.00038356,30]
[392327876,1761342644548,-500.0,0.00038356,30]
[392327877,1761342644559,-500.0,0.00038356,30]
[392327878,1761342644568,-500.0,0.00038356,30]
[392327879,1761342644578,-500.0,0.00038356,30]
[392327880,1761342644588,-500.0,0.00038356,30]
[392327881,1761342644597,-500.0,0.00038356,12]
[392327882,1761342644606,-545.39,0.00038356,30]
[392327883,1761342644615,-500.0,0.00038356,30]
[392327884,1761342644624,-500.0,0.00038356,30]
[392327885,1761342644633,-500.0,0.00038356,30]
[392327886,1761342644642,-500.0,0.00038356,30]
[392327887,1761342644651,-500.0,0.00038356,30]
[392327888,1761342644660,-500.0,0.00038356,30]
[392327889,1761342644669,-500.0,0.00038356,30]
[392327890,1761342644677,-500.0,0.00038356,30]
[392327891,1761342644686,-500.0,0.00038356,2]
[392327892,1761342644695,-500.0,0.00038356,30]
[392327893,1761342644704,-500.0,0.00038356,30]
[392327894,1761342644712,-500.0,0.00038356,30]
[392327895,1761342644721,-500.0,0.00038356,30]
[392327896,1761342644730,-500.0,0.00038356,30]
[392327897,1761342644739,-546.81378044,0.00038356,30]
[392327898,1761342644748,-500.0,0.00038356,30]
[392327899,1761342644760,-500.0,0.00038356,30]
[392327900,1761342644769,-500.0,0.00038356,30]
[392327901,1761342644778,-624.43,0.00038356,30]
[392327902,1761342644787,-500.0,0.00038356,30]
[392327903,1761342644796,-500.0,0.00038356,30]
[392327904,1761342644806,-502.31,0.00038356,30]
[392327905,1761342644815,-500.0,0.00038356,30]
[392327906,1761342644823,-500.0,0.00038356,30]
[392327907,1761342644834,-568.02,0.00038356,30]
[392327908,1761342644844,-500.0,0.00038356,30]
[392327909,1761342644853,-500.0,0.00038356,30]
[392327910,1761342644862,-151.0,0.00038356,30]
[392327911,1761342644871,-500.0,0.00038356,30]
[392327912,1761342644880,-151.0,0.00038356,30]
[392327913,1761342644889,-151.0,0.00038356,30]
[392327914,1761342644898,-731.11,0.00038356,30]
[392327915,1761342644907,-500.0,0.00038356,30]
[392327916,1761342644916,-500.0,0.00038356,30]
[392327917,1761342644925,-151.0,0.00038356,30]
[392327918,1761342644935,-500.0,0.00038356,30]
[392327919,1761342644944,-500.0,0.00038356,30]
[392327920,1761342644953,-500.0,0.00038356,30]
[392327921,1761342644962,-151.0,0.00038356,30]
[392327922,1761342644971,-151.0,0.00038356,30]
[392327923,1761342644980,-500.0,0.00038356,30]
[392327924,1761342644989,-500.0,0.00038356,30]
[392327925,1761342644998,-151.0,0.00038356,30]
[392327926,1761342645008,-500.0,0.00038356,30]
[392327927,1761342645017,-151.0,0.00038356,30]
[392327928,1761342645026,-151.0,0.00038356,30]
[392327929,1761342645035,-500.0,0.00038356,30]
[392327930,1761342645045,-2000.65,0.00038356,2]
[392327931,1761342645054,-162.50175128,0.00038356,30]
[392327932,1761342645063,-406.81553224,0.00038356,30]
[392327933,1761342645072,-500.0,0.00038356,30]
[392327934,1761342645081,-500.0,0.00038356,30]
[392327935,1761342645090,-500.0,0.00038356,30]
[392327936,1761342645099,-500.0,0.00038356,30]
[392327937,1761342645109,-500.65,0.00038356,30]
[392327938,1761342645118,-500.0,0.00038356,30]
[392327939,1761342645127,-500.0,0.00038356,30]
[392327940,1761342645136,-500.0,0.00038356,30]
[392327941,1761342645145,-608.13,0.00038356,30]
[392327942,1761342645155,-500.0,0.00038356,30]
[392327943,1761342645164,-500.0,0.00038356,30]
[392327944,1761342645173,-500.0,0.00038356,30]
[392327945,1761342645182,-500.0,0.00038356,30]
[392327946,1761342645192,-500.0,0.00038356,30]
[392327947,1761342645201,-500.0,0.00038356,30]
[392327948,1761342645211,-620.2252073,0.00038356,30]
[392327949,1761342645220,-189.03041823,0.00038356,30]
[392327950,1761342645230,-535.03,0.00038356,30]
[392327951,1761342645239,-500.0,0.00038356,30]
[392327952,1761342645249,-500.0,0.00038356,30]
[392327953,1761342645258,-500.0,0.00038356,30]
[392327954,1761342645268,-500.0,0.00038356,30]
[392327955,1761342645278,-500.0,0.00038356,30]
[392327956,1761342645287,-500.0,0.00038356,30]
[392327957,1761342645297,-566.63781265,0.00038356,30]
[392327958,1761342645306,-500.0,0.00038356,2]
[392327959,1761342645317,-457.42195687,0.00038356,30]
[392327960,1761342645327,-500.0,0.00038356,30]
[392327961,1761342645336,-500.0,0.00038356,30]
[392327962,1761342645345,-500.0,0.00038356,30]
[392327963,1761342645354,-500.0,0.00038356,30]
[392327964,1761342645363,-611.78,0.00038356,30]
[392327965,1761342645372,-500.0,0.00038356,30]
[392327966,1761342645382,-151.0,0.00038356,30]
[392327967,1761342645391,-151.0,0.00038356,30]
[392327968,1761342645401,-500.0,0.00038356,30]
[392327969,1761342645411,-500.0,0.00038356,30]
[392327970,1761342645420,-500.0,0.00038356,30]
[392327971,1761342645430,-577.74,0.00038356,30]
[392327972,1761342645439,-500.0,0.00038356,30]
[392327973,1761342645448,-151.0,0.00038356,30]
[392327974,1761342645458,-214.20737217,0.00038356,30]
[392327975,1761342645467,-500.0,0.00038356,30]
[392327976,1761342645477,-500.0,0.00038356,30]
[392327977,1761342645486,-622.46,0.00038356,30]
[392327978,1761342645496,-581.55,0.00038356,30]
[392327979,1761342645505,-500.0,0.00038356,30]
[392327980,1761342645515,-500.0,0.00038356,30]
[392327981,1761342645524,-500.0,0.00038356,30]
[392327982,1761342645533,-500.0,0.00038356,2]
[392327983,1761342645543,-500.0,0.00038356,30]
[392327984,1761342645552,-500.0,0.00038356,30]
[392327985,1761342645562,-500.0,0.00038356,30]
[392327986,1761342645571,-500.0,0.00038356,30]
[392327987,1761342645581,-151.0,0.00038356,30]
[392327988,1761342645590,-500.0,0.00038356,30]
[392327989,1761342645600,-500.0,0.00038356,30]
[392327990,1761342645609,-576.88,0.00038356,30]
[392327991,1761342645619,-500.0,0.00038356,30]
[392327992,1761342645628,-500.0,0.00038356,30]
[392327993,1761342645638,-500.0,0.00038356,30]
[392327994,1761342645648,-500.0,0.00038356,30]
[392327995,1761342645657,-587.61,0.00038356,30]
[392327996,1761342645667,-500.0,0.00038356,30]
[392327997,1761342645676,-500.0,0.00038356,30]
[392327998,1761342645687,-500.0,0.00038356,30]
[392327999,1761342645696,-521.84,0.00038356,30]
[392328000,1761342645705,-500.00000017,0.00038356,30]
[392328001,1761342645715,-500.0,0.00038356,30]
[392328002,1761342645725,-500.0,0.00038356,30]
[392328003,1761342645735,-500.0,0.00038356,30]
[392328004,1761342645745,-583.25498488,0.00038356,30]
[392328005,1761342645755,-300.0,0.00038356,2]
[392328006,1761342645769,-472.71850457,0.00038356,30]
[392328007,1761342645823,-27.28149543,0.00038356,30]
[392328008,1761342645833,-302.83435789,0.00038356,30]
[392328039,1761342646557,-150.0,0.00037616,2]
[392328040,1761342646567,-150.0,0.00037671,2]
[392328041,1761342646577,-150.0,0.00037726,2]
[392328042,1761342646587,-150.0,0.0003778,2]
[392328043,1761342646598,-150.0,0.00037835,2]
[392328044,1761342646607,-250.0,0.0003789,2]
[392328045,1761342646617,-233.30564211,0.00038356,30]
[392328046,1761342646627,-500.0,0.00038356,30]
[392328047,1761342646637,-544.06,0.00038356,30]
[392328048,1761342646646,-500.0,0.00038356,30]
[392328049,1761342646656,-500.0,0.00038356,30]
[392328050,1761342646666,-500.0,0.00038356,12]
[392328051,1761342646675,-500.0,0.00038356,30]
[392328052,1761342646685,-600.0,0.00038356,30]
[392328053,1761342646694,-80.94435789,0.00038356,30]
[392328054,1761342646718,-188.71457428,0.00038336,2]
[392328055,1761342646729,-131.93965072,0.00038336,2]
[392328059,1761342647147,-386.87605383,0.00037616,2]
[392328060,1761343212996,-188.3,0.00018423,2]
[392328061,1761343213021,-69.87058828,0.00018423,2]
[392328062,1761343556546,-80.12941172,0.00018423,2]
[392328063,1761343556580,-250.0,0.00020265,2]
[392328064,1761343556607,-370.29720302,0.00021645,2]
[392328065,1761343556634,-258.17058828,0.00024868,2]
[392328066,1761343556663,-188.3,0.00027634,2]
[392328073,1761343832565,-803.0,0.00033,2]
[392328074,1761343832576,-419.0297,0.00034988,2]
[392328075,1761343832586,-150.0,0.00035088,7]
[392328076,1761343832596,-152.0,0.00035945,3]
[392328077,1761343832606,-500.0,0.00036263,30]
[392328078,1761343832616,-150.0,0.00036306,2]
[392328080,1761343832625,-819.0,0.0003634,2]
[392328082,1761343832635,-572.0,0.0003634,2]
[392328084,1761343832645,-606.0,0.0003634,2]
[392328086,1761343832654,-1312.0,0.0003634,2]
[392328088,1761343832664,-1591.0,0.0003634,2]
[392328090,1761343832674,-1269.0,0.0003634,2]
[392328092,1761343832684,-818.0,0.0003634,2]
[392328094,1761343832694,-903.0,0.0003634,2]
[392328096,1761343832703,-1185.0,0.0003634,2]
[392328098,1761343832713,-150.0,0.00036352,2]
[392328100,1761343832723,-150.0,0.00036352,120]
[392328103,1761343832733,-6298.25,0.00036388,2]
[392328106,1761343832742,-8740.21,0.00036451,2]
[392328110,1761343832752,-250.0,0.00036455,2]
[392328113,1761343832762,-1702.5,0.00036463,2]
[392328117,1761343832771,-3025.92,0.000365,2]
[392328120,1761343832781,-431.01,0.00036629,2]
[392328123,1761343832791,-157.56,0.00036749,120]
[392328126,1761343832802,-1664.29,0.00036777,2]
[392328128,1761343832812,-666.0,0.00036802,3]
[392328130,1761343832823,-188.3,0.00036846,2]
[392328132,1761343832832,-500.0,0.00036846,30]
[392328134,1761343832842,-316.0,0.00036858,7]
[392328136,1761343832852,-863.37,0.00036859,2]
[392328138,1761343832861,-500.0,0.00037035,30]
[392328140,1761343832871,-150.0,0.00037037,7]
[392328142,1761343832880,-332.3630218,0.00037074,2]
[392328144,1761343832890,-203.37903175,0.000372,120]
[392328146,1761343832900,-196.52,0.00037211,47]
[392328148,1761343832909,-3487.0,0.00037261,2]
[392328150,1761343832919,-6539.0,0.00037261,2]
[392328152,1761343832929,-558.0,0.00037261,2]
[392328154,1761343832938,-316.0,0.00037495,2]
[392328156,1761343832948,-500.0,0.0003753,30]
[392328158,1761343832958,-500.0,0.00037595,30]
[392328160,1761343832967,-500.0,0.00037675,30]
[392328163,1761343832977,-500.0,0.0003771,30]
[392328164,1761343832987,-300.84779875,0.00037769,2]
[392328166,1761343832997,-1898.0,0.000378,2]
[392328167,1761343833007,-500.0,0.000378,13]
[392328168,1761343833016,-759.20105349,0.00037838,2]
[392328169,1761343833026,-4059.8188,0.0003787,2]
[392328170,1761343833036,-151.0,0.00037877,2]
[392328171,1761343833046,-249.68946217,0.00037877,2]
[392328172,1761343833056,-151.0,0.00037877,2]
[392328173,1761343833065,-33170.7581,0.000379,2]
[392328174,1761343833076,-1000.0,0.000379,2]
[392328175,1761343833086,-1000.0,0.000379,13]
[392328176,1761343833096,-2500.0,0.000379,2]
[392328177,1761343833106,-1887.2230772,0.00037937,2]
[392328178,1761343833116,-1000.0,0.00037946,2]
[392328179,1761343833126,-12479.31808008,0.00037946,2]
[392328180,1761343833136,-160.6215538,0.00037946,15]
[392328181,1761343833146,-1007.67271016,0.00037946,10]
[392328182,1761343833156,-3622.7516162,0.00037946,2]
[392328183,1761343833166,-5733.93424067,0.00038,15]
[392328184,1761343833179,-115441.69734566,0.00038,15]
[392328185,1761343833188,-200.0,0.00038023,10]
[392328186,1761343833198,-64793.5205408,0.00038036,3]
[392328187,1761343833208,-439.67,0.00038036,2]
[392328188,1761343833218,-439.67,0.00038036,2]
[392328189,1761343833228,-439.67,0.00038036,2]
[392328190,1761343833239,-500.0,0.00038044,2]
[392328191,1761343833250,-500.0,0.00038044,30]
[392328192,1761343833261,-647.08,0.00038045,7]
[392328193,1761343833271,-500.0,0.00038045,2]
[392328194,1761343833281,-121828.84705482,0.00038046,2]
[392328195,1761343834657,474.33748409,0.0003,2]
[392328196,1761343838354,-281.55,0.00037261,2]
[392328197,1761343838366,-541.1301,0.00037261,2]
[392328198,1761343840478,-549.45998531,0.00037261,2]
[392328199,1761343840490,-1756.0,0.00037261,2]
[392328200,1761343840765,-3327.85991469,0.00037261,2]
[392328201,1761343840774,-164.42418041,0.00037669,2]
[392328202,1761343840783,-3485.75443,0.0003797,2]
[392328203,1761343840792,-40202.19933013,0.00038046,2]
[392328204,1761343840804,-1397.8791,0.00038046,2]
[392328207,1761343843454,-262.734,0.00038046,2]
[392328208,1761343843514,-500.0,0.00038046,2]
[392328209,1761343843528,-309.93009928,0.00038046,2]
[392328210,1761343843577,-661.709808,0.00038046,2]
[392328211,1761343843593,-636.95363033,0.00038046,2]
[392328213,1761343846336,-164.4241804,0.00037796,2]
[392328214,1761343846347,-3174.8258196,0.00038046,2]
[392328215,1761343846363,-3496.10395739,0.00038046,2]
[392328216,1761343846393,-886.52768017,0.00038046,2]
[392328217,1761343846453,-300.57795713,0.00038046,2]
[392328218,1761343846598,-626.8265502,0.00038046,2]
[392328225,1761344032886,155.46,0.00013699,2]
[392328226,1761344033096,155.46,0.00020548,2]
[392328227,1761344033320,155.46,0.00027397,2]
[392328229,1761344707615,6765.48810987,0.00015,2]
[392328230,1761344707646,6210.29061334,0.00015,2]
[392328231,1761344707673,6210.29061334,0.00015,2]
[392328232,1761344707699,6210.29061334,0.00015,2]
[392328233,1761344707727,6210.29061334,0.00015,2]
[392328234,1761344707754,6210.29061334,0.00015,2]
[392328235,1761344707780,6210.29061334,0.00015,2]
[392328236,1761344707806,6210.29061334,0.00015,2]
[392328237,1761344707833,6210.29061334,0.00015,2]
[392328238,1761344707859,6210.29061334,0.00015,2]
[392328239,1761344707887,6210.29061334,0.00015,2]
[392328240,1761344707919,1141347.56870396,0.00015,2]
[392328241,1761344873942,3953292.44790224,0.00015,2]
[392328242,1761344887859,3620.74902087,0.0001439,2]
[392328243,1761344901790,2049.16641878,0.00015,2]
[392328244,1761344919754,77925.00078467,0.00015,2]
[392328245,1761344921638,411.91788379,0.00015,3]
[392328246,1761344949931,453.0,0.00023,120]
[392328261,1761345031755,-168.19,0.00032717,2]
[392328262,1761345031766,-155.46,0.00034247,2]
[392328263,1761345031777,-150.28936814,0.0003489,7]
[392328264,1761345031786,-150.0,0.0003489,7]
[392328265,1761345031796,-150.0,0.0003489,7]
[392328266,1761345031808,-150.0,0.0003489,7]
[392328267,1761345031818,-150.0,0.0003489,7]
[392328268,1761345031828,-150.0,0.0003489,7]
[392328269,1761345031839,-150.3726306,0.0003489,7]
[392328270,1761345031849,-150.0,0.0003489,7]
[392328271,1761345031859,-150.0,0.0003489,7]
[392328272,1761345031870,-150.0,0.0003489,7]
[392328273,1761345031880,-150.0,0.0003489,7]
[392328274,1761345031891,-150.0,0.0003489,7]
[392328275,1761345031901,-252.6099485,0.0003489,7]
[392328276,1761345031911,-150.0,0.0003489,7]
[392328277,1761345031922,-150.0,0.0003489,7]
[392328278,1761345031932,-150.0,0.0003489,7]
[392328279,1761345031943,-150.0,0.0003489,7]
[392328280,1761345031952,-168.0,0.00034967,2]
[392328282,1761345031963,-150.0,0.00035,30]
[392328283,1761345031973,-168.0,0.000351,2]
[392328284,1761345031984,-150.0,0.00035321,7]
[392328285,1761345031994,-168.0,0.00035618,2]
[392328286,1761345032005,-150.0,0.00035752,7]
[392328288,1761345032015,-168.0,0.00035834,7]
[392328291,1761345032025,-150.0,0.0003586,7]
[392328293,1761345032035,-150.0,0.0003586,7]
[392328295,1761345032045,-150.0,0.0003586,7]
[392328297,1761345032055,-168.0,0.00035867,2]
[392328299,1761345032065,-168.0,0.00035885,7]
[392328300,1761345032077,-168.0,0.00035964,2]
[392328301,1761345032087,-517.8,0.00036095,120]
[392328302,1761345032098,-500.0,0.00036141,30]
[392328303,1761345032108,-150.0,0.00036183,7]
[392328304,1761345032119,-150.0,0.00036183,7]
[392328305,1761345032129,-500.0,0.00036219,30]
[392328306,1761345032140,-500.0,0.00036275,30]
[392328307,1761345032151,-168.0,0.00036352,7]
[392328308,1761345032161,-500.0,0.00036399,30]
[392328309,1761345032171,-500.0,0.00036439,30]
[392328310,1761345032182,-516.6200901,0.00036513,30]
[392328311,1761345032192,-277.77,0.00036569,2]
[392328312,1761345032207,-150.0,0.00036613,7]
[392328313,1761345032217,-3678.01872502,0.00036707,2]
[392328314,1761345032227,-13816.76023693,0.00036707,2]
[392328315,1761345032238,-159.6,0.00036715,2]
[392328316,1761345032250,-180.53,0.0003676,2]
[392328317,1761345032260,-76745.33715451,0.00036807,2]
[392328318,1761345037577,-500.0,0.00036807,2]
[392328402,1761345039826,-2857.46,0.00036661,2]
[392328403,1761345039837,-6421.88,0.00036661,2]
[392328404,1761345039847,-109225.8781898,0.00036807,2]
[392328405,1761345039889,-3258.7624698,0.00036807,2]
[392328406,1761345039901,-1667.3833774,0.00036807,2]
[392328407,1761345039949,-166321.15706369,0.00036807,2]
[392328408,1761345039958,-1372.83557782,0.00036807,2]
[392328409,1761345039967,-16238.6216119,0.00036807,7]
[392328410,1761345039977,-26000.52995811,0.00036807,7]
[392328411,1761345039986,-2321.2850679,0.00036807,2]
[392328412,1761345039995,-80632.68408049,0.00036807,2]